fUSD/lending_fUSD_20250814
["ID","MTS","AMOUNT","RATE_DAILY","PERIOD"]
[379189665,1755180643685,-400.0,0.00027397,2]
[379189666,1755180643695,-400.0,0.00027397,2]
[379189667,1755180643705,-400.0,0.00027397,2]
[379189668,1755180643714,-400.0,0.00027397,2]
[379189669,1755180643724,-820.95,0.00027397,2]
[379189670,1755180643734,-400.0,0.00027397,2]
[379189671,1755180643743,-835.67,0.00027397,2]
[379189672,1755180643753,-1439.75,0.00027397,2]
[379189674,1755180643763,-410.38,0.00027397,2]
[379189676,1755180643776,-767.250904,0.00027397,7]
[379189678,1755180643786,-233.94268866,0.00027397,2]
[379189679,1755180643798,-400.0,0.00027397,2]
[379189680,1755180643809,-585.34,0.00027397,2]
[379189681,1755180643818,-400.0,0.00027397,2]
[379189682,1755180643828,-767.250904,0.00027397,7]
[379189683,1755180643837,-400.0,0.00027397,2]
[379189684,1755180643847,-514.36,0.00027397,2]
[379189685,1755180643856,-2246.66,0.00027397,2]
[379189686,1755180643866,-400.0,0.00027397,2]
[379189687,1755180643876,-1899.11,0.00027397,2]
[379189688,1755180643885,-400.0,0.00027397,2]
[379189689,1755180643895,-464.41,0.00027397,2]
[379189690,1755180643904,-400.0,0.00027397,2]
[379189691,1755180643914,-735.99,0.00027397,2]
[379189692,1755180643923,-834.56,0.00027397,2]
[379189693,1755180643934,-400.0,0.00027397,2]
[379189694,1755180643944,-400.0,0.00027397,2]
[379189695,1755180643953,-495.88,0.00027397,2]
[379189696,1755180643963,-1019.99,0.00027397,2]
[379189697,1755180643972,-1880.84,0.00027397,2]
[379189698,1755180643982,-400.0,0.00027397,2]
[379189699,1755180643992,-207.351488,0.00027397,7]
[379189700,1755180644002,-400.0,0.00027397,2]
[379189701,1755180644012,-1268.55,0.00027397,2]
[379189702,1755180644022,-207.351488,0.00027397,7]
[379189703,1755180644032,-6474.25,0.00027397,2]
[379189704,1755180644042,-400.0,0.00027397,2]
[379189705,1755180644051,-580.53,0.00027397,2]
[379189706,1755180644061,-400.0,0.00027397,2]
[379189707,1755180644072,-400.0,0.00027397,2]
[379189708,1755180644082,-1065.21,0.00027397,2]
[379189709,1755180644091,-888.35,0.00027397,2]
[379189710,1755180644101,-988.17,0.00027397,2]
[379189711,1755180644110,-2981.69,0.00027397,2]
[379189712,1755180644120,-700.45,0.00027397,2]
[379189713,1755180644131,-400.0,0.00027397,2]
[379189714,1755180644140,-495.35,0.00027397,2]
[379189715,1755180644151,-528.76,0.00027397,2]
[379189716,1755180644160,-1700.19,0.00027397,2]
[379189717,1755180644172,-726.53,0.00027397,2]
[379189718,1755180644183,-400.0,0.00027397,2]
[379189719,1755180644193,-1304.19,0.00027397,2]
[379189720,1755180644203,-767.56,0.00027397,2]
[379189721,1755180644213,-400.0,0.00027397,2]
[379189722,1755180644223,-500.0,0.00027397,2]
[379189723,1755180644233,-500.0,0.00027397,2]
[379189724,1755180644243,-500.0,0.00027397,2]
[379189725,1755180644253,-500.0,0.00027397,2]
[379189726,1755180644263,-500.0,0.00027397,2]
[379189727,1755180644273,-500.0,0.00027397,2]
[379189728,1755180644283,-255.9,0.00027397,2]
[379189729,1755180644293,-889.62,0.00027397,2]
[379189730,1755180644304,-400.0,0.00027397,2]
[379189731,1755180644314,-400.0,0.00027397,2]
[379189732,1755180644324,-827.01,0.00027397,2]
[379189733,1755180644334,-400.0,0.00027397,2]
[379189734,1755180644344,-400.0,0.00027397,2]
[379189735,1755180644355,-550.75,0.00027397,2]
[379189736,1755180644365,-576.43,0.00027397,2]
[379189737,1755180644375,-400.0,0.00027397,2]
[379189738,1755180644386,-501.27,0.00027397,2]
[379189739,1755180644396,-801.21,0.00027397,2]
[379189740,1755180644408,-400.0,0.00027397,2]
[379189741,1755180644419,-3815.49,0.00027397,2]
[379189742,1755180644430,-1588.642726,0.00027397,7]
[379189743,1755180644440,-400.0,0.00027397,2]
[379189744,1755180644450,-400.0,0.00027397,2]
[379189745,1755180644460,-641.63,0.00027397,2]
[379189746,1755180644471,-810.79,0.00027397,2]
[379189747,1755180644481,-1588.642726,0.00027397,7]
[379189748,1755180644491,-400.0,0.00027397,2]
[379189749,1755180644501,-634.84,0.00027397,2]
[379189750,1755180644511,-444.09,0.00027397,2]
[379189751,1755180644521,-400.0,0.00027397,2]
[379189752,1755180644532,-2723.37,0.00027397,2]
[379189753,1755180644543,-151.0,0.00027397,7]
[379189754,1755180644552,-1680.88,0.00027397,2]
[379189755,1755180644562,-400.0,0.00027397,2]
[379189756,1755180644573,-2415.49,0.00027397,2]
[379189757,1755180644587,-400.0,0.00027397,2]
[379189758,1755180644597,-400.0,0.00027397,2]
[379189759,1755180644607,-1226.53,0.00027397,2]
[379189760,1755180644618,-400.0,0.00027397,2]
[379189761,1755180644628,-300.0,0.00027397,2]
[379189762,1755180644641,-401.84,0.00027397,2]
[379189763,1755180644651,-3058.32,0.00027397,2]
[379189764,1755180644662,-2383.1,0.00027397,2]
[379189765,1755180644673,-400.0,0.00027397,2]
[379189766,1755180644686,-400.0,0.00027397,2]
[379189767,1755180644697,-615.5,0.00027397,2]
[379189768,1755180644707,-615.5,0.00027397,2]
[379189769,1755180644721,-467.21,0.00027397,2]
[379189770,1755180644732,-615.5,0.00027397,2]
[379189771,1755180644743,-615.5,0.00027397,2]
[379189772,1755180644754,-3246.29,0.00027397,2]
[379189773,1755180644766,-615.5,0.00027397,2]
[379189774,1755180644778,-615.5,0.00027397,2]
[379189775,1755180644788,-615.5,0.00027397,2]
[379189776,1755180644798,-400.0,0.00027397,2]
[379189777,1755180644809,-615.5,0.00027397,2]
[379189778,1755180644820,-2225.24,0.00027397,2]
[379189779,1755180644831,-892.97,0.00027397,2]
[379189780,1755180644841,-665.44,0.00027397,2]
[379189781,1755180644851,-2132.74,0.00027397,2]
[379189782,1755180644861,-774.17,0.00027397,2]
[379189783,1755180644872,-400.0,0.00027397,2]
[379189784,1755180644884,-400.0,0.00027397,2]
[379189785,1755180644894,-400.0,0.00027397,2]
[379189786,1755180644904,-549.5,0.00027397,2]
[379189787,1755180644914,-400.0,0.00027397,2]
[379189788,1755180644925,-1681.25,0.00027397,2]
[379189789,1755180644938,-400.0,0.00027397,2]
[379189790,1755180644948,-400.0,0.00027397,2]
[379189791,1755180644958,-400.0,0.00027397,2]
[379189792,1755180644969,-888.78,0.00027397,2]
[379189793,1755180644979,-500.0,0.00027397,2]
[379189794,1755180644989,-400.0,0.00027397,2]
[379189795,1755180645000,-400.0,0.00027397,2]
[379189796,1755180645010,-500.0,0.00027397,2]
[379189797,1755180645021,-511.11336131,0.00027397,2]
[379189798,1755180645032,-4864.41,0.00027397,2]
[379189799,1755180645042,-400.0,0.00027397,2]
[379189800,1755180645054,-944.93,0.00027397,2]
[379189801,1755180645065,-400.0,0.00027397,2]
[379189802,1755180645076,-400.0,0.00027397,2]
[379189803,1755180645087,-1432.13,0.00027397,2]
[379189804,1755180645098,-400.0,0.00027397,2]
[379189805,1755180645108,-400.0,0.00027397,2]
[379189806,1755180645118,-400.0,0.00027397,2]
[379189807,1755180645129,-400.0,0.00027397,2]
[379189808,1755180645139,-568.22,0.00027397,2]
[379189809,1755180645150,-400.0,0.00027397,2]
[379189810,1755180645160,-478.75,0.00027397,2]
[379189811,1755180645171,-400.0,0.00027397,2]
[379189812,1755180645183,-400.0,0.00027397,2]
[379189813,1755180645194,-400.0,0.00027397,2]
[379189814,1755180645204,-534.09,0.00027397,2]
[379189815,1755180645215,-2141.94,0.00027397,2]
[379189816,1755180645226,-400.0,0.00027397,2]
[379189817,1755180645237,-2404.13,0.00027397,2]
[379189818,1755180645247,-2861.79,0.00027397,2]
[379189819,1755180645258,-441.94,0.00027397,2]
[379189820,1755180645269,-400.0,0.00027397,2]
[379189821,1755180645279,-1496.26,0.00027397,2]
[379189822,1755180645290,-2607.44,0.00027397,2]
[379189823,1755180645300,-797.56,0.00027397,2]
[379189824,1755180645310,-739.87,0.00027397,2]
[379189825,1755180645320,-400.0,0.00027397,2]
[379189826,1755180645330,-576.39,0.00027397,2]
[379189827,1755180645340,-400.0,0.00027397,2]
[379189828,1755180645351,-400.0,0.00027397,2]
[379189829,1755180645360,-400.0,0.00027397,2]
[379189830,1755180645370,-1294.56,0.00027397,2]
[379189831,1755180645381,-400.0,0.00027397,2]
[379189832,1755180645391,-400.0,0.00027397,2]
[379189833,1755180645400,-1078.71,0.00027397,2]
[379189834,1755180645411,-651.18,0.00027397,2]
[379189835,1755180645421,-400.0,0.00027397,2]
[379189836,1755180645432,-1791.89,0.00027397,2]
[379189839,1755180645442,-400.0,0.00027397,2]
[379189841,1755180645452,-2368.52,0.00027397,2]
[379189842,1755180645462,-400.0,0.00027397,2]
[379189843,1755180645473,-400.0,0.00027397,2]
[379189844,1755180645483,-1935.73,0.00027397,2]
[379189845,1755180645493,-400.0,0.00027397,2]
[379189846,1755180645504,-476.26779013,0.00027397,2]
[379189847,1755180645514,-1136.91,0.00027397,2]
[379189848,1755180645524,-287.34836906,0.00027397,2]
[379189849,1755180645534,-1110.84,0.00027397,2]
[379189850,1755180645544,-3162.29,0.00027397,2]
[379189852,1755180645554,-2020.5,0.00027397,2]
[379189854,1755180645565,-400.0,0.00027397,2]
[379189856,1755180645575,-400.0,0.00027397,2]
[379189857,1755180645585,-400.0,0.00027397,2]
[379189858,1755180645594,-400.0,0.00027397,2]
[379189859,1755180645606,-400.0,0.00027397,2]
[379189860,1755180645616,-469.18,0.00027397,2]
[379189861,1755180645627,-569.34,0.00027397,2]
[379189862,1755180645644,-1174.265223,0.00027397,7]
[379189863,1755180645654,-400.0,0.00027397,2]
[379189864,1755180645665,-454.05,0.00027397,2]
[379189865,1755180645676,-2730.28,0.00027397,2]
[379189866,1755180645687,-672.37,0.00027397,2]
[379189867,1755180645698,-526.75,0.00027397,2]
[379189868,1755180645708,-911.86,0.00027397,2]
[379189869,1755180645718,-859.43,0.00027397,2]
[379189870,1755180645729,-1627.32,0.00027397,2]
[379189871,1755180645741,-1174.265223,0.00027397,7]
[379189872,1755180645751,-400.0,0.00027397,2]
[379189873,1755180645761,-2889.74,0.00027397,2]
[379189874,1755180645772,-400.0,0.00027397,2]
[379189875,1755180645782,-2010.25,0.00027397,2]
[379189876,1755180645792,-568.27,0.00027397,2]
[379189877,1755180645802,-247.8412294,0.00027397,2]
[379189878,1755180645812,-400.0,0.00027397,2]
[379189879,1755180645823,-779.32,0.00027397,2]
[379189880,1755180645833,-2639.24,0.00027397,2]
[379189881,1755180645843,-1086.48,0.00027397,2]
[379189882,1755180645853,-1639.959375,0.00027397,2]
[379189883,1755180645863,-400.0,0.00027397,2]
[379189884,1755180645873,-275.42113833,0.00027397,2]
[379189885,1755180645883,-400.0,0.00027397,2]
[379189886,1755180645894,-2875.03,0.00027397,2]
[379189887,1755180645904,-400.0,0.00027397,2]
[379189888,1755180645914,-400.0,0.00027397,2]
[379189889,1755180645925,-400.0,0.00027397,2]
[379189890,1755180645936,-400.0,0.00027397,2]
[379189891,1755180645946,-400.0,0.00027397,2]
[379189892,1755180645957,-400.0,0.00027397,2]
[379189895,1755180646321,-481.41,0.00027397,2]
[379189896,1755180646338,-3167.64,0.00027397,2]
[379189897,1755180646349,-400.0,0.00027397,2]
[379189898,1755180646359,-400.0,0.00027397,2]
[379189899,1755180646368,-400.0,0.00027397,2]
[379189900,1755180646378,-400.0,0.00027397,2]
[379189901,1755180646389,-400.0,0.00027397,2]
[379189902,1755180646399,-668.96,0.00027397,2]
[379189903,1755180646409,-1153.46,0.00027397,2]
[379189904,1755180646419,-400.0,0.00027397,2]
[379189905,1755180646431,-484.92,0.00027397,2]
[379189906,1755180646444,-559.69,0.00027397,2]
[379189907,1755180646453,-4275.58,0.00027397,2]
[379189908,1755180646463,-1298.99,0.00027397,2]
[379189909,1755180646473,-400.0,0.00027397,2]
[379189910,1755180646483,-400.0,0.00027397,2]
[379189911,1755180646493,-150.664673,0.00027397,2]
[379189912,1755180646503,-975.8,0.00027397,2]
[379189913,1755180646513,-2172.0,0.00027397,2]
[379189914,1755180646522,-1044.78,0.00027397,2]
[379189915,1755180646532,-500.0,0.00027397,2]
[379189916,1755180646542,-562.4,0.00027397,2]
[379189917,1755180646551,-500.0,0.00027397,2]
[379189918,1755180646561,-3074.23,0.00027397,2]
[379189919,1755180646571,-500.0,0.00027397,2]
[379189920,1755180646580,-500.0,0.00027397,2]
[379189921,1755180646590,-1873.24,0.00027397,2]
[379189922,1755180646600,-474.8,0.00027397,2]
[379189923,1755180646610,-400.0,0.00027397,2]
[379189924,1755180646620,-400.0,0.00027397,2]
[379189925,1755180646633,-400.0,0.00027397,2]
[379189926,1755180646643,-400.0,0.00027397,2]
[379189927,1755180646653,-1756.66,0.00027397,2]
[379189928,1755180646662,-1980.349437,0.00027397,2]
[379189929,1755180646674,-400.0,0.00027397,2]
[379189930,1755180646688,-400.0,0.00027397,2]
[379189931,1755180646697,-1055.02,0.00027397,2]
[379189932,1755180646709,-1177.575723,0.00027397,2]
[379189933,1755180646719,-400.0,0.00027397,2]
[379189934,1755180646728,-400.0,0.00027397,2]
[379189935,1755180646738,-400.0,0.00027397,2]
[379189936,1755180646747,-400.0,0.00027397,2]
[379189937,1755180646757,-408.62178631,0.00027397,2]
[379189938,1755180646767,-2342.25,0.00027397,2]
[379189939,1755180646776,-192.80460537,0.00027397,2]
[379189940,1755180646786,-400.0,0.00027397,2]
[379189941,1755180646796,-2509.21,0.00027397,2]
[379189942,1755180646806,-400.0,0.00027397,2]
[379189943,1755180646816,-1563.14,0.00027397,2]
[379189944,1755180646825,-213.647604,0.00027397,2]
[379189945,1755180646835,-1915.15,0.00027397,2]
[379189946,1755180646844,-400.0,0.00027397,2]
[379189947,1755180646853,-2557.65,0.00027397,2]
[379189948,1755180646863,-400.0,0.00027397,2]
[379189949,1755180646872,-1754.66,0.00027397,2]
[379189950,1755180646882,-400.0,0.00027397,2]
[379189951,1755180646891,-224.5991772,0.00027397,2]
[379189952,1755180646901,-1479.53,0.00027397,2]
[379189953,1755180646910,-400.0,0.00027397,2]
[379189954,1755180646920,-4237.38,0.00027397,2]
[379189955,1755180646933,-400.0,0.00027397,2]
[379189956,1755180646942,-1565.42,0.00027397,2]
[379189957,1755180646952,-400.0,0.00027397,2]
[379189958,1755180646961,-400.0,0.00027397,2]
[379189959,1755180646971,-2181.56,0.00027397,2]
[379189960,1755180646981,-2102.24,0.00027397,2]
[379189961,1755180646990,-1435.16,0.00027397,2]
[379189962,1755180647001,-1895.36,0.00027397,2]
[379189963,1755180647010,-400.0,0.00027397,2]
[379189964,1755180647019,-400.0,0.00027397,2]
[379189965,1755180647029,-400.0,0.00027397,2]
[379189966,1755180647038,-2750.3,0.00027397,2]
[379189967,1755180647048,-400.0,0.00027397,2]
[379189968,1755180647058,-747.18,0.00027397,2]
[379189969,1755180647067,-485.49,0.00027397,2]
[379189970,1755180647077,-3143.73,0.00027397,2]
[379189971,1755180647087,-475.51,0.00027397,2]
[379189972,1755180647096,-400.0,0.00027397,2]
[379189973,1755180647106,-1926.69,0.00027397,2]
[379189974,1755180647115,-400.0,0.00027397,2]
[379189975,1755180647125,-867.69,0.00027397,2]
[379189976,1755180647135,-1022.09,0.00027397,2]
[379189977,1755180647145,-663.01,0.00027397,2]
[379189978,1755180647154,-400.0,0.00027397,2]
[379189979,1755180647164,-2479.52,0.00027397,2]
[379189980,1755180647174,-391.98709604,0.00027397,2]
[379189981,1755180647187,-2448.27,0.00027397,2]
[379189982,1755180647197,-400.0,0.00027397,2]
[379189983,1755180647206,-1210.6,0.00027397,2]
[379189984,1755180647216,-1152.23,0.00027397,2]
[379189985,1755180647226,-681.89,0.00027397,2]
[379189986,1755180647236,-502.59,0.00027397,2]
[379189987,1755180647246,-2891.81,0.00027397,2]
[379189988,1755180647257,-350.909002,0.00027397,7]
[379189989,1755180647267,-1094.35,0.00027397,2]
[379189990,1755180647276,-400.0,0.00027397,2]
[379189991,1755180647286,-2150.65,0.00027397,2]
[379189992,1755180647296,-611.6,0.00027397,2]
[379189993,1755180647306,-400.0,0.00027397,2]
[379189994,1755180647315,-2328.7,0.00027397,2]
[379189995,1755180647325,-400.0,0.00027397,2]
[379189996,1755180647334,-2853.44,0.00027397,2]
[379189997,1755180647344,-350.909002,0.00027397,7]
[379189998,1755180647354,-594.26,0.00027397,2]
[379189999,1755180647364,-870.23,0.00027397,2]
[379190000,1755180647373,-400.0,0.00027397,2]
[379190001,1755180647383,-160.512608,0.00027397,2]
[379190002,1755180647392,-2772.09,0.00027397,2]
[379190003,1755180647402,-400.0,0.00027397,2]
[379190004,1755180647412,-840.18,0.00027397,2]
[379190005,1755180647422,-400.0,0.00027397,2]
[379190006,1755180647436,-418.02,0.00027397,2]
[379190007,1755180647445,-400.0,0.00027397,2]
[379190008,1755180647455,-746.38,0.00027397,2]
[379190009,1755180647464,-372.6941803,0.00027397,2]
[379190010,1755180647474,-1504.39,0.00027397,2]
[379190011,1755180647483,-407.12,0.00027397,2]
[379190012,1755180647493,-1046.24,0.00027397,2]
[379190013,1755180647502,-2337.3,0.00027397,2]
[379190014,1755180647512,-166.548241,0.00027397,2]
[379190015,1755180647521,-4854.45,0.00027397,2]
[379190016,1755180647531,-400.0,0.00027397,2]
[379190017,1755180647540,-1652.29,0.00027397,2]
[379190018,1755180647550,-2293.37,0.00027397,2]
[379190019,1755180647559,-400.0,0.00027397,2]
[379190020,1755180647569,-400.0,0.00027397,2]
[379190021,1755180647578,-400.0,0.00027397,2]
[379190022,1755180647588,-400.0,0.00027397,2]
[379190023,1755180647598,-400.0,0.00027397,2]
[379190024,1755180647607,-400.0,0.00027397,2]
[379190025,1755180647616,-400.0,0.00027397,2]
[379190026,1755180647630,-995.39,0.00027397,2]
[379190027,1755180647640,-400.0,0.00027397,2]
[379190028,1755180647649,-768.27,0.00027397,2]
[379190029,1755180647659,-400.0,0.00027397,2]
[379190030,1755180647670,-1034.25,0.00027397,2]
[379190031,1755180647680,-400.0,0.00027397,2]
[379190032,1755180647693,-400.0,0.00027397,2]
[379190033,1755180647702,-1086.23,0.00027397,2]
[379190034,1755180647712,-400.0,0.00027397,2]
[379190035,1755180647722,-834.65,0.00027397,2]
[379190036,1755180647732,-4530.1,0.00027397,2]
[379190037,1755180647742,-400.0,0.00027397,2]
[379190038,1755180647751,-400.0,0.00027397,2]
[379190039,1755180647760,-400.0,0.00027397,2]
[379190040,1755180647770,-471.21,0.00027397,2]
[379190041,1755180647780,-514.08,0.00027397,2]
[379190042,1755180647789,-400.0,0.00027397,2]
[379190043,1755180647799,-1239.99,0.00027397,2]
[379190044,1755180647808,-400.0,0.00027397,2]
[379190045,1755180647818,-413.48,0.00027397,2]
[379190046,1755180647827,-400.0,0.00027397,2]
[379190047,1755180647836,-400.0,0.00027397,2]
[379190048,1755180647845,-629.5,0.00027397,2]
[379190049,1755180647855,-4708.78,0.00027397,2]
[379190050,1755180647864,-4255.06,0.00027397,2]
[379190051,1755180647873,-2357.21,0.00027397,2]
[379190052,1755180647883,-400.0,0.00027397,2]
[379190053,1755180647893,-417.87,0.00027397,2]
[379190054,1755180647902,-400.0,0.00027397,2]
[379190055,1755180647911,-400.0,0.00027397,2]
[379190056,1755180647921,-1900.8,0.00027397,2]
[379190057,1755180647933,-400.0,0.00027397,2]
[379190058,1755180647942,-400.0,0.00027397,2]
[379190059,1755180647952,-400.0,0.00027397,2]
[379190060,1755180647961,-2114.38,0.00027397,2]
[379190061,1755180647971,-400.0,0.00027397,2]
[379190062,1755180647980,-671.18,0.00027397,2]
[379190063,1755180647990,-2707.92,0.00027397,2]
[379190064,1755180648000,-400.0,0.00027397,2]
[379190065,1755180648009,-4885.58,0.00027397,2]
[379190066,1755180648019,-400.0,0.00027397,2]
[379190067,1755180648028,-1007.48,0.00027397,2]
[379190068,1755180648038,-817.35,0.00027397,2]
[379190069,1755180648047,-400.0,0.00027397,2]
[379190070,1755180648057,-400.0,0.00027397,2]
[379190071,1755180648067,-400.0,0.00027397,2]
[379190072,1755180648076,-400.0,0.00027397,2]
[379190073,1755180648086,-400.0,0.00027397,2]
[379190074,1755180648096,-2148.71,0.00027397,2]
[379190075,1755180648105,-862.9,0.00027397,2]
[379190076,1755180648115,-2302.15,0.00027397,2]
[379190077,1755180648125,-400.0,0.00027397,2]
[379190078,1755180648134,-400.0,0.00027397,2]
[379190079,1755180648144,-1455.09,0.00027397,2]
[379190080,1755180648153,-400.0,0.00027397,2]
[379190081,1755180648163,-881.87,0.00027397,2]
[379190082,1755180648172,-400.0,0.00027397,2]
[379190083,1755180648186,-904.73730347,0.00027397,2]
[379190481,1755180652239,-59.15269653,0.00027397,2]
[379190483,1755180652250,-1303.08,0.00027397,2]
[379190485,1755180652260,-734.02,0.00027397,2]
[379190487,1755180652271,-400.0,0.00027397,2]
[379190489,1755180652280,-400.0,0.00027397,2]
[379190490,1755180652290,-400.0,0.00027397,2]
[379190492,1755180652299,-174.99898035,0.00027397,2]
[379190494,1755180652312,-352.64101965,0.00027397,2]
[379190496,1755180652321,-526.63,0.00027397,2]
[379190497,1755180652330,-305.39358035,0.00027397,2]
[379190500,1755180652354,-94.60641965,0.00027397,2]
[379190502,1755180652364,-571.34,0.00027397,2]
[379190504,1755180652373,-400.0,0.00027397,2]
[379190505,1755180652382,-852.98,0.00027397,2]
[379190507,1755180652392,-400.0,0.00027397,2]
[379190509,1755180652401,-400.0,0.00027397,2]
[379190511,1755180652411,-960.94,0.00027397,2]
[379190512,1755180652420,-400.0,0.00027397,2]
[379190514,1755180652430,-400.0,0.00027397,2]
[379190516,1755180652443,-400.0,0.00027397,2]
[379190518,1755180652453,-400.0,0.00027397,2]
[379190520,1755180652462,-400.0,0.00027397,2]
[379190521,1755180652472,-1772.87,0.00027397,2]
[379190523,1755180652481,-1111.15519086,0.00027397,2]
[379190525,1755180652493,-631.49480914,0.00027397,2]
[379190527,1755180652503,-774.42,0.00027397,2]
[379190529,1755180652512,-498.87,0.00027397,2]
[379190530,1755180652521,-400.0,0.00027397,2]
[379190532,1755180652534,-400.0,0.00027397,2]
[379190534,1755180652544,-740.0,0.00027397,2]
[379190536,1755180652553,-113.29454196,0.00027397,2]
[379190538,1755180652565,-331.38545804,0.00027397,2]
[379190540,1755180652574,-630.85834333,0.00027397,2]
[379190542,1755180652594,-5.57165667,0.00027397,2]
[379190544,1755180652604,-400.0,0.00027397,2]
[379190546,1755180652614,-400.0,0.00027397,2]
[379190547,1755180652623,-511.41,0.00027397,2]
[379190549,1755180652635,-400.0,0.00027397,2]
[379190551,1755180652645,-146.81155213,0.00027397,2]
[379190553,1755180652657,-253.18844787,0.00027397,2]
[379190555,1755180652666,-500.0,0.00027397,2]
[379190556,1755180652676,-500.0,0.00027397,2]
[379190558,1755180652687,-400.0,0.00027397,2]
[379190560,1755180652696,-500.0,0.00027397,2]
[379190562,1755180652706,-222.41155213,0.00027397,2]
[379190564,1755180652718,-277.58844787,0.00027397,2]
[379190566,1755180652727,-445.6308949,0.00027397,2]
[379190568,1755180652739,-160.23919452,0.00027397,2]
[379190569,1755180652748,-552.26080548,0.00027397,2]
[379190572,1755180652768,-2268.99919452,0.00027397,2]
[379190574,1755180652778,-2368.47348217,0.00027397,2]
[379190576,1755180652789,-685.03651783,0.00027397,2]
[379190577,1755180652799,-2492.35,0.00027397,2]
[379190579,1755180652809,-709.74,0.00027397,2]
[379190581,1755180652818,-1330.42,0.00027397,2]
[379190583,1755180652826,-500.0,0.00027397,2]
[379190585,1755180652836,-500.0,0.00027397,2]
[379190586,1755180652846,-500.0,0.00027397,2]
[379190588,1755180652855,-500.0,0.00027397,2]
[379190590,1755180652865,-1497.49,0.00027397,2]
[379190592,1755180652874,-500.0,0.00027397,2]
[379190594,1755180652885,-764.99,0.00027397,2]
[379190596,1755180652895,-500.0,0.00027397,2]
[379190597,1755180652905,-500.0,0.00027397,2]
[379190599,1755180652915,-816.56,0.00027397,2]
[379190601,1755180652925,-500.0,0.00027397,2]
[379190603,1755180652938,-400.0,0.00027397,2]
[379190605,1755180652951,-469.0,0.00027397,2]
[379190607,1755180652962,-416.99,0.00027397,2]
[379190609,1755180652973,-400.0,0.00027397,2]
[379190611,1755180652984,-400.0,0.00027397,2]
[379190612,1755180652994,-3667.64,0.00027397,2]
[379190614,1755180653004,-1505.42,0.00027397,2]
[379190616,1755180653014,-400.0,0.00027397,2]
[379190618,1755180653025,-1408.4,0.00027397,2]
[379190620,1755180653034,-2380.16348217,0.00027397,2]
[379190622,1755180653049,-1402.06651783,0.00027397,2]
[379190624,1755180653059,-400.0,0.00027397,2]
[379190626,1755180653069,-402.63,0.00027397,2]
[379190628,1755180653078,-400.0,0.00027397,2]
[379190629,1755180653088,-400.0,0.00027397,2]
[379190631,1755180653098,-400.0,0.00027397,2]
[379190633,1755180653108,-400.0,0.00027397,2]
[379190635,1755180653118,-2781.42,0.00027397,2]
[379190637,1755180653128,-1976.35,0.00027397,2]
[379190638,1755180653137,-400.0,0.00027397,2]
[379190640,1755180653147,-3593.41921536,0.00027397,2]
[379190642,1755180653161,-748.59078464,0.00027397,2]
[379190643,1755180653171,-16.73957336,0.00027397,2]
[379190645,1755180653184,-1202.799999,0.00027397,2]
[379190647,1755180653200,-804.90042764,0.00027397,2]
[379190649,1755180653210,-400.0,0.00027397,2]